Cogmind - Beta 14 @@@ ROGUE MODE // 2024.08.26 @ 19:43:25 Player: MadBadger Result: Destroyed by EF-9NI(R) with Subdweller Machine Gun Performance ------------- Evolutions (0) 0 Regions Visited (2) 400 Robots Destroyed (23) 115 Value Destroyed (521) 521 Prototype IDs (2) 40 Alien Tech Used (0) 0 Bonus (0) 0 TOTAL SCORE: 1076 Bonus ------- None Cogmind --------- Core Integrity 0/250 Matter 288/300 Energy 100/100 System Corruption 3% Temperature Cool (0) Movement Treading (240) Ox1 Location -10/Subcaves Parts ------- > --- POWER (1) -------- (None) > --- PROPULSION (2) --- Light Treads (fused) > --- UTILITY (2) ------ Large Storage Unit Signal Interpreter > --- WEAPON (2) ------- Light Assault Rifle > --- INVENTORY (15) --- Structural Scanner Sensor Array Beam Cannon Peak State ------------ > --- POWER ------------ Ion Engine > --- PROPULSION ------- Light Treads Light Treads > --- UTILITY ---------- Small Storage Unit Structural Scanner > --- WEAPON ----------- Assault Rifle Assault Rifle > --- INVENTORY -------- Light Ion Engine Signal Interpreter Beam Cannon Light Assault Rifle [Rating: 7] Favorites ----------- Power Light Ion Engine Engine Light Ion Engine Propulsion Light Treads Treads Light Treads Utility Large Storage Unit Device Structural Scanner Storage Large Storage Unit Processor Signal Interpreter Weapon Assault Rifle Ballistic Gun Assault Rifle Ballistic Cannon Light Cannon Build | -11 -10 -10 ------- Run | Yrd Mat Sub Slots Evolved . | . . . Power . | . . . Propulsion . | . . . Utility . | . . . Weapon . | . . . Parts Attached 19 | 8 7 4 Power 3 | 2 1 . Engine 3 | 2 1 . Core . | . . . Reactor . | . . . Propulsion 4 | 2 1 1 Treads 4 | 2 1 1 Leg . | . . . Wheel . | . . . Hover . | . . . Flight . | . . . Utility 4 | 1 3 . Device 1 | . 1 . Storage 2 | 1 1 . Processor 1 | . 1 . Hackware . | . . . Protection . | . . . Artifact . | . . . Weapon 8 | 3 2 3 Energy Gun . | . . . Energy Cannon . | . . . Ballistic Gun 5 | 3 . 2 Ballistic Cannon 3 | . 2 1 Launcher . | . . . Special Weapon . | . . . Impact Weapon . | . . . Slashing Weapon . | . . . Piercing Weapon . | . . . Special Melee Weapon . | . . . Unidentified Prototypes . | . . . Parts Lost 7 | . . 7 Power 1 | . . 1 Propulsion 2 | . . 2 Utility . | . . . Weapon 4 | . . 4 Highest Loss Streak 4 | . . 4 To Critical Strikes 1 | . . 1 Average Slot Usage (%) 88 | . 97 78 Engine 11 | . 13 9 Treads 21 | . 27 14 Device 5 | . 11 . Storage 14 | . 14 14 Processor 7 | . 1 14 Ballistic Gun 16 | . 18 13 Ballistic Cannon 10 | . 9 11 Peak Build Rating 7 | 6 7 7 Average Rating 6 | 5 6 5 On Entrance 4 | . 6 7 Naked Turns . | . . . Heaviest Build 31 | 14 31 28 Greatest Support 40 | 40 40 40 Greatest Overweight (x) 8 | 3 1 8 Average Overweight (x) . | . . . Largest Inventory Capacity 15 | 8 15 15 Average Capacity 13 | 7 13 15 Most Carried 7 | 2 7 7 Average Carried 4 | 1 5 4 Final Capacity 15 | 8 15 15 Final Carried 7 | 2 7 3 Class Distribution -------------------- 100% | Mutant Dominant Class ---------------- Mutant | -10/Materials Mutant | -10/Subcaves Resources | -11 -10 -10 ----------- Run | Yrd Mat Sub Matter Collected 1001 | 240 429 332 Remotely . | . . . Salvage Created 744 | . 565 179 Parts 41 | . 29 12 Haulers Intercepted . | . . . Recyclers Shooed 1 | . 1 . Parts Field Recycled . | . . . Retrieved Matter . | . . . Parts Self-Destructed 6 | . . 6 Prevented . | . . . Kills | -11 -10 -10 ------- Run | Yrd Mat Sub Combat Hostiles Destroyed 15 | . 10 5 Guns 9 | . 6 3 Cannons 6 | . 4 2 Classes Destroyed 6 | . 5 1 Worker 2 | . 2 . Recycler 3 | . 3 . Watcher 3 | . 3 . Swarmer 5 | . 5 . Grunt 5 | . 5 . Subdweller 5 | . . 5 Best Kill Streak 3 | . 3 2 Combat Bots Only 3 | . 3 2 Max Kills in Single Turn 2 | . 2 1 Gunslinging 1 | . 1 . Exploded . | . . . Melee . | . . . Uniques/NPCs Destroyed . | . . . Combat | -11 -10 -10 -------- Run | Yrd Mat Sub Hostile Shots Fired 95 | . 51 44 Missed 24 | . 15 9 Damage Taken 1256 | . 485 771 Core 258 | . 58 200 Absorbed by Shields . | . . . Core Remaining (%) 100 | 100 . . Volleys Fired 97 | . 42 55 Largest 2 | . 2 2 Hottest 55 | . 55 55 Shots Fired 179 | . 85 94 Gun 115 | . 62 53 Cannon 64 | . 23 41 Launcher . | . . . Special . | . . . Kinetic 179 | . 85 94 Thermal . | . . . Explosive . | . . . Electromagnetic . | . . . Robot Hit Streak 17 | . 10 17 Robot Miss Streak 6 | . 6 1 Penetration Max . | . . . Secondary Targets 1 | . 1 . Max Gunslinging Chain 1 | . 1 . Shots Hit Robots 91 | . 52 39 Core Hits 37 | . 26 11 Critical Kills . | . . . Critical Parts Destroyed . | . . . Critical Strikes 2 | . 1 1 Blast 2 | . 1 1 Melee Attacks . | . . . Impact . | . . . Slashing . | . . . Piercing . | . . . Sneak Attacks . | . . . Combat Hostiles . | . . . Follow-up Attacks . | . . . Damage Inflicted 1146 | . 772 374 Guns 710 | . 497 213 Cannons 423 | . 262 161 Explosions . | . . . Melee . | . . . Ramming 13 | . 13 . Kinetic 1133 | . 759 374 Thermal . | . . . Explosive . | . . . Electromagnetic . | . . . Impact . | . . . Slashing . | . . . Piercing . | . . . Highest Corruption 3 | . 3 3 Average Corruption 2 | . 2 3 Corruption Purged . | . . . Corruption Blocked . | . . . Effects 64 | . 20 44 Message Errors 14 | . 4 10 Matter Fused 16 | . 7 9 Heat Flow Errors 9 | . 2 7 Energy Discharges 7 | . 1 6 Parts Rejected 1 | . 1 . Parts Fused 1 | . . 1 Data Loss (minor) 7 | . 2 5 Misfires 2 | . 1 1 Alerts 5 | . 2 3 Weapon Failures 2 | . . 2 Overload Shots . | . . . Overflow Damage 13 | . 13 . Projectiles 13 | . 13 . Explosions . | . . . Melee . | . . . Knockbacks 5 | . 3 2 Impact . | . . . Kinetic 5 | . 3 2 Secondary . | . . . Self-Inflicted Damage . | . . . Shots . | . . . Rammed 2 | . 2 . Targets Rammed 3 | . 3 . Kicked . | . . . Crushed 1 | . 1 . Highest Temperature 255 | . 218 255 Average Temperature 82 | . 67 98 Received Heat Transfer 285 | . 141 144 Siege Activations . | . . . Robots Corrupted . | . . . Combat Hostiles . | . . . Parts Fried . | . . . Impact Corruptions . | . . . Robots Melted . | . . . Combat Hostiles . | . . . Parts Melted . | . . . Heat Transferred . | . . . Parts Sabotaged . | . . . Parts Stolen . | . . . Parts Stripped . | . . . Power Chain Reactions . | . . . Alert | -11 -10 -10 ------- Run | Yrd Mat Sub Peak Influence 214 | . 214 . Initial . | . . . Average 33 | . 35 . Maximum Alert Level 1 | . 1 . Low Security (%) 99 | 100 99 . Level 1 . | . . . Level 2 . | . . . Level 3 . | . . . Level 4 . | . . . Level 5 . | . . . High Security . | . . . Max Security . | . . . Squads Dispatched 3 | . 3 . Investigation 2 | . 2 . Extermination . | . . . Reinforcement 1 | . 1 . Assault . | . . . Garrison . | . . . Intercept . | . . . Searches Triggered . | . . . Construction Impeded . | . . . Haulers Reinforced . | . . . Active Scanning Responses . | . . . Cargo Convoy Interrupts . | . . . Stealth | -11 -10 -10 --------- Run | Yrd Mat Sub Distress Signals . | . . . Communications Jammed . | . . . Distress Signals . | . . . Times Spotted 23 | . 16 7 Peak Tracking Total 3 | . 3 2 Tactical Retreats 1 | . 1 . Traps | -11 -10 -10 ------- Run | Yrd Mat Sub Traps Triggered 8 | . 8 . Indirectly . | . . . Trap Hack Attempts . | . . . Triggered . | . . . Disarmed . | . . . Reprogrammed . | . . . Reused . | . . . Traps Extracted . | . . . Installed . | . . . Triggered . | . . . Machines | -11 -10 -10 ---------- Run | Yrd Mat Sub Machines Disabled 2 | . 2 . Max in Single Turn 1 | . 1 . Machines Repaired . | . . . Machines Dismantled . | . . . Machines Sabotaged . | . . . Overloaded Fab Kills . | . . . Hacking | -11 -10 -10 --------- Run | Yrd Mat Sub Machines Accessed 1 | . 1 . Terminals 1 | . 1 . Fabricators . | . . . Repair Stations . | . . . Recycling Units . | . . . Scanalyzers . | . . . Garrison Access . | . . . Total Hacks 4 | . 4 . Successful 3 | . 3 . Failed 1 | . 1 . Catastrophic . | . . . Database Lockouts . | . . . Manual 2 | . 2 . Terminals 4 | . 4 . Fabricators . | . . . Repair Stations . | . . . Recycling Units . | . . . Scanalyzers . | . . . Garrison Access . | . . . Terminal Hacks 3 | . 3 . Record 2 | . 2 . Prototype ID Bank 1 | . 1 . Fabricator Hacks . | . . . Repair Station Hacks . | . . . Recycling Unit Hacks . | . . . Scanalyzer . | . . . Garrison Access Hacks . | . . . Unauthorized Hacks . | . . . Terminals . | . . . Fabricators . | . . . Repair Stations . | . . . Recycling Units . | . . . Scanalyzers . | . . . Garrison Access . | . . . Data Cores Recovered . | . . . Used . | . . . Hacking Detections 1 | . 1 . Full Trace Events . | . . . Feedback Events . | . . . Feedback Blocked . | . . . Robot Schematics Acquired . | . . . Robots Built . | . . . Authchips . | . . . Time . | . . . Total Robot Build Rating . | . . . Part Schematics Acquired . | . . . Parts Built . | . . . Authchips . | . . . Time . | . . . Total Part Build Rating . | . . . Parts Repaired . | . . . Time . | . . . Parts Recycled . | . . . Recycled Matter . | . . . Retrieved Matter . | . . . Retrieved Components . | . . . Parts Scanalyzed . | . . . Part Schematics Acquired . | . . . Parts Damaged . | . . . Bothacking | -11 -10 -10 ------------ Run | Yrd Mat Sub Used RIF Installer . | . . . Robots Hacked . | . . . Non-combat . | . . . Combat . | . . . Robot Hacks Applied . | . . . Relay Couplers Released . | . . . Fabnet Peak Effective % . | . . . Robots Rewired . | . . . Allies Hacked . | . . . Hacks Repelled . | . . . Allies | -11 -10 -10 -------- Run | Yrd Mat Sub Total Allies . | . . . Largest Group . | . . . Highest-Rated Group . | . . . Highest-Rated Ally . | . . . Total Orders . | . . . Ally Attacks . | . . . Total Damage . | . . . Kills . | . . . Allies Corrupted . | . . . Allies Melted . | . . . Intel | -11 -10 -10 ------- Run | Yrd Mat Sub Robot Analysis Total . | . . . Derelict Logs Recovered . | . . . Drone Launches . | . . . Drone Recoveries . | . . . Exploration | -11 -10 -10 ------------- Run | Yrd Mat Sub Turns Passed 4029 | 93 2008 1928 Spaces Moved 1908 | 55 1097 756 Core 16 | 11 . 5 Treads 1892 | 44 1097 751 Legs . | . . . Wheels . | . . . Hover . | . . . Flight . | . . . Fastest Speed 50 | 50 160 160 Average Speed 189 | 148 162 233 Slowest Speed 450 | 200 240 450 Overloaded Moves . | . . . Propulsion Burnouts . | . . . Robots Hopped . | . . . Cave-ins Triggered . | . . . Exploration Rate (%) 43 | 4 98 28 Regions Visited 2 Branch Regions 1 Pre-discovered Areas . | . . . Known Exits Taken 1 | . 1 . Unknown Exits Taken 1 | 1 . . Scrap Searched 4 | . . 4 Spaces Dug . | . . . Terrain Destroyed . | . . . Melee . | . . . Projectile . | . . . AOE . | . . . Terrain Rammed . | . . . Walls Destroyed . | . . . Machines Disabled . | . . . Actions | -11 -10 -10 --------- Run | Yrd Mat Sub Total 2133 | 62 1238 833 Wait 101 | . 83 18 Move 1906 | 54 1096 756 Hop . | . . . Pick Up 6 | . 6 . Fast Attach 9 | 6 3 . Attach 5 | . 1 4 Detach . | . . . Swap 5 | 2 3 . Drop 1 | . 1 . Fire 97 | . 42 55 Melee . | . . . Ram . | . . . Kick . | . . . Crush 3 | . 3 . Escape Stasis . | . . . Rewire . | . . . Trap . | . . . Miscellaneous . | . . . Route ------- -11/Scrapyard -10/Materials (discovered 5 exits: *Mat x3 / [*Min] / *Sub) -10/Subcaves History --------- Turn | Location | Event 21 | -11/Scrapyard | Discovered new exit (range 16) 94 | -11/Scrapyard | Entered Materials 125 | -10/Materials | Discovered new exit (range 8) 307 | -10/Materials | Build established: Mutant 564 | -10/Materials | Discovered new exit (range 16) 1236 | -10/Materials | Discovered new exit (range 11) 1324 | -10/Materials | Discovered new exit (range 10) 1593 | -10/Materials | Discovered new exit (range 9) 1852 | -10/Materials | Identified exit to Materials 2046 | -10/Materials | Identified exit to Subcaves 2102 | -10/Materials | Entered Subcaves 2171 | -10/Subcaves | A swath of the cavern ceiling suddenly collapsed 2283 | -10/Subcaves | Lost 4 parts (2n2w) 2872 | -10/Subcaves | A swath of the cavern ceiling suddenly collapsed 3443 | -10/Subcaves | Core integrity fell below 50% 4006 | -10/Subcaves | Core integrity fell below 20% 4030 | -10/Subcaves | Destroyed by EF-9NI(R) with Subdweller Machine Gun Last Messages --------------- 03652_ Subatomizers dissect the Flamer. 03662_ Subatomizers dissect the Disposable Heat Sink. 03738_ System corrupted: Lgt. Assault Rifle jammed. 03738_ System corrupted: Lgt. Cannon jammed. 03753_ System corrupted: Component data lost. 03764_ Acquired 38 matter. 03767_ Acquired 16 matter. 03778_ %ZYX/WO UY>R 03834_ C1ZE1SAYS#COGAYXL946|2 HZAAIA PH=IGQIHVP 03852_ System corrupted: Heat flow error (+136). 03902_ System corrupted: Component data lost. 03949_ Acquired 26 matter. 03957_ System corrupted: IFF burst signal emitted. 03964_ Acquired 10 matter. 03981_ System corrupted: Matter fused (-7). 04004_ NU-SOO(R) destroyed. 04007_ Lgt. Cannon destroyed. 04019_ System corrupted: IFF burst signal emitted. EF-9NI(R) emerges from concealment. Map ----- +----------------------------------------------------+ | ?????????????????????????????????????????????????? | | ?????????????????????????????????????????????????? | | ?????????????????????????????????????????????????? | | ?????????????????????????????????????????????????? | | ?????????????????????????????????????????????????? | | ?????????????????????????????????????????????????? | | ?????????????????????????????????????????????????? | | ?????????????????????????????????????????????????? | | ?????????????????????????????????????????????????? | | ?????????????????????????????????????????????????? | | ?????????????????????????????????????????????????? | | ???????????????????????? ????????????????????????? | | ???????????????????????? ????????????????????????? | | ???????????????????????# ????????????????????????? | | ??????????????????????? ""#?????????????????????? | | ?????????????????????? "#####?????????????????? | | ?????????????????????? ""# # #?????????????????? | | ???????????????????????""" ??????????????????? | | ???????????????????????"% R ???????????????????? | | ??????????????????????? R* ????????# ?????????? | | ???????????????????????#%= ##??##### ??????????? | | ???????????????????????#&[ #??# ?????????? | | ?????????????????####### ### ??????????? | | ????????????# # ## # # #??????????? | | ????????? #?## #?###???????? | | ???????????????# $## # @### " ## ##??????? | | ?????????????????????## "#???# #??????? | | ??????????????????????## ##??# ????????? | | ??????????????????????# #### #?????????? | | ??????????????????????#### ###%* ## #?????????? | | ?????????????????????????##### % ##????????? | | ????????????????????????????# = ###??????? | | ????????????????????????????# ! ##?????? | | ????????????????????????????# #?????? | | ????????????????????????????# ### #?????? | | ????????????????????????????# ## #?# #?????? | | ????????????????????????????##?#### ### #?????? | | ??????????????????????????????????##### ##?????? | | ?????????????????????????????????????## ####???? | | ????????????????? ??????????????????## ##??? | | ?????????????????? ?????????????????# ##?? | | ????????????????? # ???????????????## #?? | | ?????????????????? ??####????????# ## #?? | | ???????????????????? ## #????????# ## #? #?? | | ?????????????????????? ##???##### #?##?? #?? | | ???????????????????????# ##### ##????? ##?? | | ???????????????????###??# ## ##???????#??? | | ??????????????????## ##?# ##???????????? | | ?????????????????## ### #####????????????? | | ??????????????#### ####????????????????? | +----------------------------------------------------+ Best States ------------- Heat Dissipation 25 Energy Generation 10 Energy Capacity 250 Matter Stores 300 Matter Capacity 300 Sight Range 16 Terrain Scan Density 10 Evasion (%) 40 Recoil Reduction 2 Item Schematics ----------------- None Robot Schematics ------------------ None Fabricated ------------ Nothing Alien Tech Used ----------------- None Achievements -------------- None Challenges ------------ None Game ------ Seed QuantumRemoteChainsaw Manual? 0 Play Time 00:20:09 Cumulative 10.5 hours Start 2024.08.26 @ 19:12:17 End 2024.08.26 @ 19:43:25 Sessions 1 Manual Loads 0 Difficulty Rogue Special Mode None Game No. 16 Rogue 16 Adventurer 0 Explorer 0 Win Type - Total 0 Types 0/0/0/0/0/0/0/0/0 Lore% 2 Gallery% 10 Achievement% 12 Wizard Run 0 Options --------- Layout 0 ASCII 0 Keyboard 1 Movement Numpad Keybinds 0 Fullscreen 1 Font 24/Smallcaps Map View 76x50 Zoom Use 0% Tactical HUD 1 Map Filters NONE Filters NONE Steam 1 RUN: a1f9d084-99c8-4ee5-afa5-309008920878